fUST/lending_fUST_20260409
["ID","MTS","AMOUNT","RATE_DAILY","PERIOD"]
[420104594,1775678443806,-7.43,9.7e-05,2]
[420104596,1775678532798,-3709.4,0.00012897,10]
[420104601,1775678738343,-414.48375,9.412e-05,2]
[420104611,1775678927959,500.0,9.002e-05,2]
[420104612,1775678927989,500.0,9.002e-05,2]
[420104613,1775678928019,500.0,9.002e-05,2]
[420104614,1775678928049,500.0,9.002e-05,2]
[420104615,1775678928078,500.0,9.002e-05,2]
[420104616,1775678928108,500.0,9.002e-05,2]
[420104617,1775678936876,5000.0,9.001e-05,2]
[420104618,1775678944836,5000.0,9.001e-05,2]
[420104683,1775678959353,5000.0,9.001e-05,2]
[420104684,1775678967369,1586.80665867,9.001e-05,2]
[420104685,1775678981707,5000.0,9.001e-05,2]
[420104686,1775679008666,12995.74297669,7.6e-05,2]
[420104690,1775679022023,648.2291472,5e-05,2]
[420104703,1775679032561,-2000.0,9.002e-05,2]
[420104704,1775679032570,-546.0,9.002e-05,2]
[420104705,1775679032579,-144.08,9.7e-05,2]
[420104706,1775679032588,-300.0,9.794e-05,2]
[420104707,1775679032597,-300.0,9.794e-05,2]
[420104708,1775679032606,-300.0,9.794e-05,2]
[420104709,1775679032615,-300.0,9.794e-05,2]
[420104710,1775679032624,-300.0,9.794e-05,2]
[420104711,1775679032632,-300.0,9.794e-05,2]
[420104712,1775679032641,-300.0,9.794e-05,2]
[420104713,1775679032650,-300.0,9.794e-05,2]
[420104714,1775679032659,-300.0,9.794e-05,2]
[420104715,1775679032668,-300.0,9.794e-05,2]
[420104717,1775679032678,-300.0,9.794e-05,2]
[420104719,1775679032688,-300.0,9.794e-05,2]
[420104721,1775679032699,-300.0,9.794e-05,2]
[420104723,1775679032709,-300.0,9.794e-05,2]
[420104725,1775679032719,-300.0,9.794e-05,2]
[420104727,1775679032729,-151.51,9.8e-05,2]
[420104729,1775679032740,-151.51,9.9e-05,2]
[420104731,1775679032750,-600.0,9.989e-05,2]
[420104733,1775679032760,-720.0,0.00010988,2]
[420104735,1775679032772,-864.0,0.00012087,2]
[420104736,1775679032782,-1000.0,0.00013295,2]
[420104737,1775679032791,-386.199606,0.00013699,2]
[420104738,1775679032801,-1000.0,0.00013699,2]
[420104740,1775679032810,-1000.0,0.00014625,2]
[420104742,1775679032819,-244.0,0.00014625,2]
[420104744,1775679032829,-193.3134501,0.00014989,2]
[420104746,1775679032839,-1267.06694062,0.00015237,2]
[420104748,1775679032849,-1000.0,0.00016087,2]
[420104750,1775679032859,-492.0,0.00016087,2]
[420104752,1775679032869,-468.74543308,0.00017696,2]
[420104754,1775679032881,-531.25456692,0.00017696,2]
[420104755,1775679032891,-791.0,0.00017696,2]
[420104756,1775679032901,-179.327,0.00018219,2]
[420104757,1775679032912,-1000.0,0.00019465,2]
[420104758,1775679032923,-1000.0,0.00019465,2]
[420104759,1775679032933,-1541.90442965,0.00019785,2]
[420104850,1775679039554,-8992.55538205,0.00019785,2]
[420104852,1775679039565,-3870.7086274,0.0002026,2]
[420104854,1775679039576,-184.0,0.0002036,2]
[420104856,1775679039587,-440.0,0.0002036,2]
[420104858,1775679039597,-386.199606,0.00020548,2]
[420104860,1775679039608,-1423.89519793,0.0002068,2]
[420104862,1775679039617,-1028.14,0.0002089,10]
[420104865,1775679039627,-317.79870039,0.00020899,2]
[420104867,1775679039638,-301.70804646,0.00020899,2]
[420104869,1775679039647,-21047.95800427,0.000209,2]
[420105479,1775679046772,-4647.00788634,0.00019587,2]
[420105481,1775679046783,-352.99211366,0.00019587,2]
[420105483,1775679046794,-897.1782916,0.000209,2]
[420105506,1775679047002,-856.79,0.0002089,10]
[420105509,1775679047012,-6134.52203315,0.000209,2]
[420105902,1775679269136,10000.0,0.00031507,120]
[420106216,1775680238064,-1000.0,0.00013699,2]
[420106217,1775680238073,-502.25451313,0.00019476,2]
[420106218,1775680238082,-354.61165645,0.0002,2]
[420106219,1775680238094,-811.51114452,0.0002,2]
[420106285,1775680243208,-2335.87719903,0.0002,2]
[420106286,1775680243219,-179.327,0.00020384,2]
[420106287,1775680243230,-500.0,0.00020501,2]
[420106288,1775680243241,-3386.87004901,0.000206,2]
[420106289,1775680243251,-7596.79409841,0.000206,2]
[420106290,1775680243264,-518.52780167,0.000206,2]
[420106291,1775680243275,-500.0,0.00020673,2]
[420106292,1775680243285,-500.0,0.00020699,2]
[420106293,1775680243296,-180.38454016,0.00020699,2]
[420106294,1775680243306,-500.0,0.00020699,2]
[420106295,1775680243317,-500.0,0.00020699,2]
[420106297,1775680243328,-375.84459467,0.00020699,2]
[420106298,1775680243338,-500.0,0.00020699,2]
[420106299,1775680243348,-500.0,0.00020699,2]
[420106300,1775680243360,-408.99987152,0.00020699,2]
[420106301,1775680243370,-500.0,0.00020699,2]
[420106302,1775680243381,-500.0,0.00020699,2]
[420106303,1775680243391,-402.20472478,0.00020699,2]
[420106304,1775680243402,-500.0,0.00020699,2]
[420106305,1775680243412,-500.0,0.00020699,2]
[420106306,1775680243422,-500.0,0.00020699,2]
[420106307,1775680243433,-500.0,0.00020699,2]
[420106308,1775680243443,-500.0,0.00020699,2]
[420106309,1775680243453,-500.0,0.00020699,2]
[420106310,1775680243463,-500.0,0.00020699,2]
[420106311,1775680243474,-500.0,0.00020699,2]
[420106312,1775680243487,-500.0,0.00020699,2]
[420106314,1775680243497,-500.0,0.00020699,2]
[420106315,1775680243508,-500.0,0.00020699,2]
[420106317,1775680243519,-591.78517383,0.00020699,2]
[420106318,1775680243529,-500.0,0.00020699,2]
[420106319,1775680243539,-500.0,0.00020699,2]
[420106320,1775680243550,-500.0,0.00020699,2]
[420106321,1775680243561,-500.0,0.00020699,2]
[420106322,1775680243571,-500.0,0.00020699,2]
[420106323,1775680243582,-500.0,0.00020699,2]
[420106324,1775680243592,-500.0,0.00020699,2]
[420106325,1775680243602,-500.0,0.00020699,2]
[420106326,1775680243613,-500.0,0.00020699,2]
[420106327,1775680243624,-500.0,0.00020699,2]
[420106328,1775680243634,-500.0,0.00020699,2]
[420106329,1775680243645,-500.0,0.00020699,2]
[420106330,1775680243655,-500.0,0.00020699,2]
[420106331,1775680243665,-500.0,0.00020699,2]
[420106332,1775680243676,-500.0,0.00020699,2]
[420106333,1775680243686,-500.0,0.00020699,2]
[420106334,1775680243696,-222.45909027,0.00020699,2]
[420106335,1775680243707,-6201.18718333,0.000207,2]
[420106336,1775680243719,-875.58817446,0.000207,2]
[420106348,1775680246025,-12958.49840869,0.000207,2]
[420106349,1775680246036,-7831.11313315,0.000207,2]
[420106350,1775680246048,-7722.27492945,0.000207,2]
[420106612,1775681442195,-2923.86707462,0.00012514,2]
[420106614,1775681442207,-2076.13292538,0.00012514,2]
[420106617,1775681442218,-414.48375,0.0001264,2]
[420106619,1775681442228,-1000.0,0.00013699,2]
[420106621,1775681442238,-300.0,0.00013832,2]
[420106623,1775681442248,-300.0,0.00013832,2]
[420106625,1775681442257,-300.0,0.00013832,2]
[420106627,1775681442267,-300.0,0.00013832,2]
[420106628,1775681442276,-300.0,0.00013832,2]
[420106630,1775681442285,-300.0,0.00013832,2]
[420106632,1775681442295,-300.0,0.00013832,2]
[420106634,1775681442304,-300.0,0.00013832,2]
[420106637,1775681442314,-300.0,0.00013832,2]
[420106639,1775681442324,-300.0,0.00013832,2]
[420106641,1775681442334,-300.0,0.00013832,2]
[420106643,1775681442343,-300.0,0.00013832,2]
[420106645,1775681442353,-300.0,0.00013832,2]
[420106647,1775681442362,-300.0,0.00013832,2]
[420106649,1775681442372,-300.0,0.00013832,2]
[420106651,1775681442381,-600.0,0.00014108,2]
[420106653,1775681442390,-1222.79708154,0.00014175,2]
[420106655,1775681442399,-2412.0312021,0.00015226,2]
[420106656,1775681442409,-720.0,0.00015518,2]
[420106658,1775681442419,-263.693104,0.00016131,2]
[420106660,1775681442429,-2679.8231378,0.00016277,2]
[420106662,1775681442439,-165.69304826,0.00017002,2]
[420106664,1775681442449,-662.10942085,0.00017002,2]
[420106666,1775681442458,-864.0,0.0001707,2]
[420106668,1775681442468,-357.49425529,0.00017897,2]
[420106670,1775681442478,-1428.54704415,0.00017897,2]
[420106672,1775681442487,-1000.0,0.00018777,2]
[420106674,1775681442497,-3252.60639927,0.00019429,2]
[420106676,1775681442506,-500.0,0.00020273,2]
[420106678,1775681442516,-500.0,0.00020297,2]
[420106681,1775681442526,-264.66190314,0.00020297,2]
[420106683,1775681442539,-235.33809686,0.00020297,2]
[420106685,1775681442549,-500.0,0.00020297,2]
[420106687,1775681442558,-460.0185978,0.00020297,2]
[420106771,1775681443178,-39.9814022,0.00020297,2]
[420106773,1775681443188,-500.0,0.00020297,2]
[420106775,1775681443198,-500.0,0.00020297,2]
[420106777,1775681443208,-500.0,0.00020297,2]
[420106779,1775681443218,-500.0,0.00020297,2]
[420106781,1775681443229,-500.0,0.00020297,2]
[420106783,1775681443239,-500.0,0.00020297,2]
[420106784,1775681443249,-370.87872655,0.00020297,2]
[420106785,1775681443260,-500.0,0.00020297,2]
[420106786,1775681443270,-500.0,0.00020297,2]
[420106787,1775681443279,-500.0,0.00020297,2]
[420106788,1775681443289,-500.0,0.00020297,2]
[420106789,1775681443299,-500.0,0.00020297,2]
[420106790,1775681443309,-500.0,0.00020297,2]
[420106791,1775681443319,-500.0,0.00020297,2]
[420106792,1775681443329,-500.0,0.00020297,2]
[420106793,1775681443340,-500.0,0.00020297,2]
[420106794,1775681443350,-500.0,0.00020297,2]
[420106795,1775681443360,-500.0,0.00020297,2]
[420106796,1775681443370,-358.19175969,0.00020297,2]
[420106797,1775681443380,-500.0,0.00020297,2]
[420106798,1775681443391,-500.0,0.00020297,2]
[420106799,1775681443402,-143.71279248,0.00020297,2]
[420106800,1775681443415,-356.28720752,0.00020297,2]
[420106801,1775681443424,-500.0,0.00020297,2]
[420106802,1775681443435,-500.0,0.00020297,2]
[420106803,1775681443447,-500.0,0.00020297,2]
[420106804,1775681443457,-500.0,0.00020297,2]
[420106805,1775681443467,-423.77095834,0.00020297,2]
[420106806,1775681443477,-500.0,0.00020297,2]
[420106807,1775681443487,-500.0,0.00020297,2]
[420106809,1775681443497,-289.23720441,0.00020297,2]
[420106811,1775681443507,-500.0,0.00020298,2]
[420106812,1775681443517,-4.85246332,0.00020298,2]
[420107046,1775681446099,-624.91159563,0.00020094,2]
[420107048,1775681446112,-4375.08840437,0.00020094,2]
[420107050,1775681446123,-723.0,0.00020094,2]
[420107052,1775681446134,-206.3431692,0.00020298,2]
[420107054,1775681446144,-284.22988356,0.00020298,2]
[420107056,1775681446153,-500.0,0.00020298,2]
[420107058,1775681446162,-651.91583432,0.00020298,2]
[420107060,1775681446173,-390.1246532,0.00020298,2]
[420107062,1775681446182,-651.91583432,0.00020298,2]
[420107064,1775681446192,-651.91583432,0.00020298,2]
[420107066,1775681446202,-651.91583432,0.00020298,2]
[420107068,1775681446213,-500.0,0.00020298,2]
[420107071,1775681446224,-651.91583432,0.00020298,2]
[420107073,1775681446233,-651.91583432,0.00020298,2]
[420107075,1775681446243,-651.91583432,0.00020298,2]
[420107077,1775681446254,-651.91583432,0.00020298,2]
[420107079,1775681446264,-500.0,0.00020298,2]
[420107080,1775681446274,-651.91583432,0.00020298,2]
[420107082,1775681446284,-651.91583432,0.00020298,2]
[420107084,1775681446295,-500.0,0.00020298,2]
[420107086,1775681446305,-651.91583432,0.00020298,2]
[420107088,1775681446315,-500.0,0.00020298,2]
[420107090,1775681446325,-651.91583432,0.00020298,2]
[420107092,1775681446335,-651.91583432,0.00020298,2]
[420107094,1775681446346,-651.91583432,0.00020298,2]
[420107096,1775681446356,-420.58730723,0.00020298,2]
[420107442,1775682081231,-3528.24021952,0.00013425,2]
[420107443,1775682081281,-706.77978048,0.00013425,2]
[420107444,1775682110432,-764.98,0.00013425,2]
[420107445,1775682110461,-783.0,0.00013561,2]
[420107446,1775682110509,-432.28021952,0.00013699,2]
[420107447,1775682139583,-1547.98,0.00013562,2]
[420107481,1775682635179,-300.0,0.00013291,2]
[420107482,1775682635189,-300.0,0.00013291,2]
[420107483,1775682635199,-609.0,0.00013291,2]
[420107484,1775682635209,-1125.10422389,0.00013292,2]
[420107485,1775682635220,-3874.89577611,0.00013292,2]
[420107486,1775682635230,-1000.0,0.00013699,2]
[420107487,1775682635239,-300.0,0.00013832,2]
[420107488,1775682635248,-300.0,0.00013832,2]
[420107489,1775682635258,-300.0,0.00013832,2]
[420107490,1775682635268,-300.0,0.00013832,2]
[420107491,1775682635278,-300.0,0.00013832,2]
[420107492,1775682635287,-300.0,0.00013832,2]
[420107493,1775682635297,-300.0,0.00013832,2]
[420107494,1775682635306,-300.0,0.00013832,2]
[420107495,1775682635316,-300.0,0.00013832,2]
[420107496,1775682635326,-300.0,0.00013832,2]
[420107497,1775682635336,-300.0,0.00013832,2]
[420107498,1775682635346,-190.07957148,0.00013832,2]
[420107504,1775682638799,-109.92042852,0.00013832,2]
[420107505,1775682638808,-300.0,0.00013832,2]
[420107506,1775682638818,-300.0,0.00013832,2]
[420107507,1775682638828,-300.0,0.00013832,2]
[420107508,1775682638837,-1756.53207246,0.00013832,2]
[420107509,1775682638847,-1000.0,0.00018208,2]
[420107510,1775682638857,-161.3143201,0.00018707,2]
[420107511,1775682638867,-918.78987776,0.0001918,2]
[420107512,1775682638876,-158.397364,0.00019288,2]
[420107513,1775682638885,-155.6073826,0.00019664,2]
[420107514,1775682638895,-23180.04074375,0.00019998,2]
[420107515,1775682638904,-209720.72541195,0.00019998,2]
[420107723,1775682641584,-520.09031662,0.00019998,2]
[420107962,1775682644088,-845.36211525,0.00019998,2]
[420107964,1775682644101,-7040.94383452,0.00019998,2]
[420108591,1775682652549,-725.15,0.00019988,3]
[420108593,1775682652561,-20099.17711018,0.00019998,2]
[420108596,1775682652573,-9696.50985768,0.00019998,2]
[420108598,1775682652585,-7831.12463321,0.00019998,2]
[420108621,1775682652799,-4205.46357376,0.00019998,2]
[420108623,1775682652812,-5498.93670626,0.00019998,2]
[420109882,1775683841697,-5000.0,0.00012897,2]
[420109884,1775683841707,-605.0,0.00013027,2]
[420109886,1775683841717,-1000.0,0.00013699,2]
[420109888,1775683841726,-3910.4768827,0.00013717,2]
[420109890,1775683841735,-300.0,0.00013832,2]
[420109892,1775683841745,-300.0,0.00013832,2]
[420109894,1775683841754,-300.0,0.00013832,2]
[420109895,1775683841764,-300.0,0.00013832,2]
[420109897,1775683841773,-300.0,0.00013832,2]
[420109899,1775683841782,-300.0,0.00013832,2]
[420109902,1775683841792,-300.0,0.00013832,2]
[420109903,1775683841801,-300.0,0.00013832,2]
[420109905,1775683841811,-300.0,0.00013832,2]
[420109907,1775683841820,-300.0,0.00013832,2]
[420109909,1775683841830,-300.0,0.00013832,2]
[420109911,1775683841840,-300.0,0.00013832,2]
[420109913,1775683841849,-300.0,0.00013832,2]
[420109915,1775683841858,-300.0,0.00013832,2]
[420109917,1775683841868,-300.0,0.00013832,2]
[420109919,1775683841877,-153.655,0.00013832,2]
[420109921,1775683841886,-187.26453899,0.00013832,2]
[420109923,1775683841896,-50000.0,0.00013832,2]
[420109925,1775683841906,-1054.08956009,0.00014175,2]
[420109927,1775683841915,-173.26,0.000159,2]
[420109929,1775683841925,-600.0,0.00017944,2]
[420109931,1775683841934,-325.1311657,0.00019259,2]
[420109933,1775683841943,-322.0,0.00019313,2]
[420109935,1775683841952,-155.275669,0.00019557,2]
[420109936,1775683841961,-3118.7951843,0.00019557,2]
[420109938,1775683841970,-720.0,0.00019738,2]
[420109940,1775683841979,-500.0,0.00019794,2]
[420109942,1775683841988,-322.11076128,0.00019794,2]
[420109944,1775683841998,-500.0,0.00019794,2]
[420109946,1775683842007,-500.0,0.00019794,2]
[420109948,1775683842016,-500.0,0.00019794,2]
[420109950,1775683842025,-500.0,0.00019794,2]
[420109952,1775683842034,-500.0,0.00019794,2]
[420109954,1775683842043,-500.0,0.00019794,2]
[420109956,1775683842052,-213.75232871,0.00019794,2]
[420109958,1775683842060,-400.12856901,0.00019795,2]
[420109959,1775683842070,-3228.033601,0.00019795,2]
[420109961,1775683842079,-3228.033601,0.00019795,2]
[420109963,1775683842088,-3228.033601,0.00019795,2]
[420109965,1775683842097,-3228.033601,0.00019795,2]
[420109967,1775683842107,-1181071.90770661,0.00019796,2]
[420110127,1775683843745,-4251.07197513,0.00019796,2]
[420110151,1775683843966,-50150.0326968,0.00019796,2]
[420110153,1775683843978,-1661.52715135,0.00019796,2]
[420110306,1775683846656,-314.6356945,0.0001949,2]
[420110307,1775683846665,-6016.7237805,0.00019796,2]
[420110309,1775683846676,-2329.18508868,0.00019796,2]
[420110310,1775683846687,-2058.57938517,0.00019796,2]
[420110329,1775683846874,-18831.74570761,0.00019796,2]
[420111178,1775684369739,162.650598,0.00017448,120]
[420111227,1775685034074,-4930.51959114,0.00012021,2]
[420111228,1775685034086,-69.48040886,0.00012021,2]
[420111229,1775685034095,-421.09858965,0.00012142,2]
[420111230,1775685034107,-3326.88606441,0.00012142,2]
[420111252,1775685041559,-1524.93958504,0.00011901,2]
[420111259,1775685041804,-604.0028126,0.00011901,2]
[420111295,1775685044045,-5000.0,0.00011782,2]
[420111297,1775685044061,-1819.00791223,0.00011901,2]
[420111316,1775685044278,-250.820863,0.00011901,2]
[420111602,1775685047056,-801.22882713,0.00011901,2]
[420111603,1775685047067,-588.0,0.00011901,2]
[420111604,1775685047078,-1000.0,0.00013699,2]
[420111605,1775685047089,-250.0,0.00017359,2]
[420111606,1775685047101,-162.650598,0.00017448,2]
[420111607,1775685047112,-181.3845844,0.00017478,2]
[420111608,1775685047124,-658.85801989,0.0001764,2]
[420111609,1775685047137,-153.655,0.0001764,2]
[420111610,1775685047148,-579.59839008,0.00018318,2]
[420111611,1775685047159,-501.4027662,0.0001929,2]
[420111612,1775685047170,-500.0,0.0001929,2]
[420111613,1775685047181,-347.88833184,0.0001929,2]
[420111614,1775685047191,-2106.49956027,0.00019337,5]
[420111615,1775685047205,-13639.50043973,0.00019337,5]
[420111616,1775685047216,-1135.0,0.00019337,5]
[420111617,1775685047227,-500.0,0.00019467,2]
[420111618,1775685047239,-2150.738,0.00019467,2]
[420111619,1775685047250,-537.6845,0.00019467,2]
[420111620,1775685047261,-205.174275,0.00019489,2]
[420111621,1775685047272,-557.5788265,0.00019522,2]
[420111622,1775685047283,-500.0,0.00019522,2]
[420111623,1775685047294,-500.0,0.00019522,2]
[420111624,1775685047306,-500.0,0.00019522,2]
[420111625,1775685047317,-508.4851727,0.00019522,2]
[420111627,1775685047328,-578.20924308,0.00019577,2]
[420111629,1775685047339,-158.27217887,0.00019592,2]
[420111631,1775685047350,-599.60298507,0.00019632,2]
[420111633,1775685047361,-555.0,0.00019667,5]
[420111635,1775685047372,-162.380719,0.00019683,2]
[420111637,1775685047383,-445.202766,0.00019683,2]
[420111640,1775685047394,-151.0,0.00019683,2]
[420111642,1775685047406,-500.0,0.00019683,2]
[420111644,1775685047417,-500.0,0.00019683,2]
[420111646,1775685047428,-500.0,0.00019683,2]
[420111648,1775685047438,-500.0,0.00019683,2]
[420111650,1775685047448,-500.0,0.00019683,2]
[420111652,1775685047458,-500.0,0.00019683,2]
[420111654,1775685047469,-500.0,0.00019683,2]
[420111656,1775685047479,-500.0,0.00019683,2]
[420111658,1775685047490,-500.0,0.00019683,2]
[420111660,1775685047502,-500.0,0.00019683,2]
[420111662,1775685047514,-500.0,0.00019683,2]
[420111664,1775685047524,-500.0,0.00019683,2]
[420111667,1775685047535,-151.0,0.00019683,2]
[420111669,1775685047545,-500.0,0.00019683,2]
[420111671,1775685047556,-151.0,0.00019683,2]
[420111673,1775685047567,-500.0,0.00019683,2]
[420111675,1775685047578,-151.0,0.00019683,2]
[420111677,1775685047588,-151.0,0.00019683,2]
[420111679,1775685047599,-156.587,0.00019683,2]
[420111681,1775685047610,-500.0,0.00019683,2]
[420111683,1775685047620,-151.0,0.00019683,2]
[420111685,1775685047631,-500.0,0.00019683,2]
[420111687,1775685047641,-151.0,0.00019683,2]
[420111689,1775685047651,-500.0,0.00019683,2]
[420111691,1775685047662,-151.0,0.00019683,2]
[420111693,1775685047672,-500.0,0.00019683,2]
[420111695,1775685047682,-151.0,0.00019683,2]
[420111698,1775685047693,-151.0,0.00019683,2]
[420111700,1775685047705,-229.80459918,0.00019683,2]
[420111702,1775685047716,-537.6845,0.00019683,2]
[420111704,1775685047727,-621.78829552,0.00019687,2]
[420111706,1775685047738,-500.0,0.00019693,2]
[420111708,1775685047748,-200.0,0.00019695,2]
[420111710,1775685047760,-579.84144298,0.00019741,2]
[420111712,1775685047771,-500.0,0.00019741,2]
[420111715,1775685047782,-500.0,0.00019741,2]
[420111717,1775685047793,-313.36119666,0.00019741,2]
[420111719,1775685047804,-500.0,0.00019741,2]
[420111721,1775685047814,-500.0,0.00019741,2]
[420111723,1775685047824,-500.0,0.00019741,2]
[420111725,1775685047834,-213.64652962,0.00019741,2]
[420111727,1775685047845,-280.35098395,0.00019742,2]
[420111729,1775685047856,-500.0,0.00019967,2]
[420111731,1775685047866,-177.178397,0.00019997,2]
[420111733,1775685047876,-500.0,0.00020015,2]
[420111735,1775685047887,-2230.315306,0.00020015,2]
[420111737,1775685047898,-500.0,0.00020185,5]
[420111739,1775685047910,-600.0,0.00020191,2]
[420111741,1775685047921,-510.50954058,0.00020231,2]
[420111744,1775685047932,-557.5788265,0.00020231,2]
[420111746,1775685047943,-956.24220726,0.00020297,2]
[420111748,1775685047954,-296.37006492,0.00020297,2]
[420111750,1775685047964,-1185.48025966,0.00020297,2]
[420111752,1775685047975,-2667.33058425,0.00020297,2]
[420111754,1775685047986,-4741.92103866,0.00020297,2]
[420111756,1775685047997,-7401.84237128,0.00020297,2]
[420111758,1775685048007,-393.64956456,0.00020297,2]
[420111761,1775685048018,-626.6920043,0.00020297,2]
[420111763,1775685048028,-989.62144977,0.00020297,2]
[420112071,1775685662134,-362.98345217,0.0001264,2]
[420112072,1775685662147,-889.03309566,0.0001264,2]
[420112073,1775685662156,-362.98345217,0.00012768,2]
[420112101,1775686231921,-517.75085583,0.00012021,2]
[420112103,1775686231934,-1380.56441874,0.00012021,2]
[420112105,1775686231946,-3101.68472543,0.00012021,2]
[420112106,1775686231956,-589.0,0.00012021,2]
[420112107,1775686231966,-5000.0,0.00012142,2]
[420112108,1775686231975,-1000.0,0.00013699,2]
[420112109,1775686231986,-3821.14386022,0.00017912,2]
[420112110,1775686231996,-891.61841285,0.00017912,2]
[420112132,1775686238244,-5000.0,0.00017733,2]
[420112133,1775686238254,-681.40524713,0.00017912,2]
[420112134,1775686238264,-177.27,0.000197,2]
[420112135,1775686238273,-198.85319551,0.00019742,2]
[420112136,1775686238282,-198.85319549,0.00019743,2]
[420112137,1775686238300,-198.85319549,0.00019743,2]
[420112138,1775686238311,-2150.738,0.00019784,2]
[420112139,1775686238321,-1517.14656741,0.00019796,2]
[420112140,1775686238331,-517.36544386,0.00019796,2]
[420112141,1775686238341,-5634.58781062,0.00019796,2]
[420112142,1775686238351,-2067.39231368,0.00019796,2]
[420112143,1775686238360,-500.0,0.00019842,2]
[420112144,1775686238370,-345.70322844,0.00019842,2]
[420112145,1775686238379,-795.35786909,0.00019842,2]
[420112146,1775686238389,-500.0,0.00019842,2]
[420112147,1775686238399,-795.35786909,0.00019842,2]
[420112148,1775686238408,-500.0,0.00019842,2]
[420112149,1775686238418,-795.35786909,0.00019842,2]
[420112150,1775686238428,-795.35786909,0.00019842,2]
[420112151,1775686238438,-128.56962267,0.00019842,2]
[420112152,1775686238450,-371.43037733,0.00019842,2]
[420112153,1775686238460,-795.35786909,0.00019842,2]
[420112154,1775686238470,-795.35786909,0.00019842,2]
[420112155,1775686238479,-795.35786909,0.00019842,2]
[420112156,1775686238489,-795.35786909,0.00019842,2]
[420112157,1775686238498,-500.0,0.00019842,2]
[420112158,1775686238508,-795.35786909,0.00019842,2]
[420112159,1775686238517,-795.35786909,0.00019842,2]
[420112160,1775686238527,-500.0,0.00019842,2]
[420112161,1775686238537,-500.0,0.00019842,2]
[420112162,1775686238546,-519.25042053,0.00019842,2]
[420112163,1775686238556,-795.35786909,0.00019842,2]
[420112164,1775686238566,-347.13781631,0.00019842,2]
[420112165,1775686238576,-500.0,0.00019842,2]
[420112166,1775686238586,-795.35786909,0.00019842,2]
[420112167,1775686238596,-795.35786909,0.00019842,2]
[420112168,1775686238606,-745.02173163,0.00019842,2]
[420112172,1775686240872,-1240.0,0.00019742,2]
[420112173,1775686240884,-2685.40494975,0.00019742,2]
[420112183,1775686243591,-2371.42626353,0.00019742,2]
[420112184,1775686243603,-50.33613746,0.00019842,2]
[420112185,1775686243613,-795.35786909,0.00019842,2]
[420112186,1775686243623,-795.35786909,0.00019842,2]
[420112187,1775686243634,-835.12576253,0.00019842,2]
[420112188,1775686243644,-835.12576253,0.00019842,2]
[420112189,1775686243654,-835.12576253,0.00019842,2]
[420112190,1775686243665,-835.12576253,0.00019842,2]
[420112191,1775686243675,-835.12576253,0.00019842,2]
[420112192,1775686243684,-101.92641746,0.00019842,2]
[420112195,1775686246335,-5000.0,0.00019545,2]
[420112196,1775686246345,-733.19934507,0.00019842,2]
[420112197,1775686246355,-835.12576253,0.00019842,2]
[420112198,1775686246365,-835.12576253,0.00019842,2]
[420112199,1775686246375,-835.12576253,0.00019842,2]
[420112200,1775686246384,-139145.56815403,0.00019843,2]
[420112201,1775686265270,278.0,0.00031506,120]
[420112224,1775687432087,-1000.0,0.00013699,2]
[420112226,1775687432098,-605.92221814,0.00013699,2]
[420112228,1775687432110,-9.07778186,0.00013699,2]
[420112229,1775687432120,-209.01,0.000138,2]
[420112230,1775687432129,-223.27336013,0.00014175,2]
[420112231,1775687432142,-283.624,0.00014175,2]
[420112236,1775687438175,-209.24484168,0.00014175,2]
[420112238,1775687438185,-946.77345811,0.00015063,2]
[420112240,1775687438197,-420.77061684,0.00015063,2]
[420112242,1775687438207,-2018.94594809,0.00015951,2]